bitfinex-derivatives/quotes_SOLF0:USTF0_20220108
["timestamp","ask_amount","ask_price","bid_price","bid_amount"]
[1641609642437,7.322,138.4,138.33,1.67721847]
[1641609642639,7.322,138.4,138.33,2.93935502]
[1641609642838,7.322,138.4,138.33,1.67721847]
[1641609643539,7.322,138.4,138.32,1.67721847]
[1641609643739,111.01110859,138.41,138.35,1.26213655]
[1641609643939,111.01110859,138.41,138.32,6.86321847]
[1641609644141,111.01110859,138.41,138.35,1.26213655]
[1641609644841,111.01110859,138.41,138.32,5.186]
[1641609645042,111.01110859,138.41,138.31,70.60695801]
[1641609645742,111.01110859,138.41,138.32,1.67709558]
[1641609645941,111.01110859,138.41,138.35,1.26213655]
[1641609647146,111.01110859,138.41,138.31,70.60695801]
[1641609647346,118.10410859,138.41,138.31,70.60695801]
[1641609648148,118.10410859,138.41,138.32,1.67698019]
[1641609648549,76.12219,138.41,138.35,1.26213655]
[1641609648750,76.12219,138.41,138.35,32.75779]
[1641609648950,3.42831602,138.4,138.35,32.75779]
[1641609649352,3.42831602,138.4,138.35,6.35513655]
[1641609649750,76.12219,138.41,138.35,1.26213655]
[1641609651153,27.66479,138.41,138.37,1.26213655]
[1641609651854,27.66479,138.41,138.33,4.0]
[1641609652054,27.66479,138.41,138.34,50.2988]
[1641609652755,27.66479,138.41,138.37,1.26213655]
[1641609654456,27.66479,138.41,138.35,5.10400673]
[1641609654857,5.10400673,138.42,138.36,27.66479]
[1641609655057,5.10400673,138.42,138.39,1.26213655]
[1641609655257,5.10400673,138.42,138.36,27.66479]
[1641609655862,5.10400673,138.42,138.38,1.26213655]
[1641609656062,5.10400673,138.42,138.36,32.76879673]
[1641609656468,5.10400673,138.42,138.37,5.10400673]
[1641609657267,5.10400673,138.42,138.37,6.78285577]
[1641609660768,5.10400673,138.42,138.38,5.10400673]
[1641609662673,5.10400673,138.42,138.39,4.0]
[1641609662876,15.27737801,138.45,138.4,4.0]
[1641609663073,15.27737801,138.45,138.41,4.0]
[1641609663274,15.27737801,138.45,138.42,27.66479]
[1641609663876,15.27737801,138.48,138.42,27.66479]
[1641609665078,26.15737801,138.49,138.42,27.66479]
[1641609665278,26.15737801,138.49,138.4,43.7833]
[1641609665678,30.15737801,138.49,138.4,43.7833]
[1641609666281,4.0,138.48,138.4,43.7833]
[1641609666779,30.15737801,138.49,138.4,43.7833]
[1641609666981,15.27737801,138.48,138.4,43.7833]
[1641609667181,27.66479,138.47,138.4,43.7833]
[1641609667479,32.72679,138.47,138.4,43.7833]
[1641609667883,48.00416801,138.47,138.4,43.7833]
[1641609668583,32.72679,138.47,138.4,43.7833]
[1641609671585,5.062,138.47,138.42,27.66479]
[1641609672187,5.062,138.47,138.4,43.7833]
[1641609672787,10.88,138.49,138.4,43.7833]
[1641609672987,14.88,138.49,138.4,43.7833]
[1641609673188,10.88,138.49,138.4,43.7833]
[1641609673688,27.66479,138.47,138.4,43.7833]
[1641609675591,27.66479,138.47,138.42,27.66479]
[1641609678798,15.27737801,138.48,138.42,27.66479]
[1641609679001,15.27737801,138.48,138.42,31.66479]
[1641609679398,15.27737801,138.5,138.42,31.66479]
[1641609679599,15.27737801,138.5,138.43,51.011]
[1641609679799,15.27737801,138.5,138.47,27.66479]
[1641609679999,15.27737801,138.5,138.47,32.54179]
[1641609680200,15.27737801,138.5,138.47,4.877]
[1641609680602,15.27737801,138.51,138.47,4.877]
[1641609681302,15.27737801,138.51,138.43,47.011]
[1641609681701,15.27737801,138.51,138.46,27.66479]
[1641609683002,15.27737801,138.51,138.43,47.011]
[1641609683704,15.27737801,138.51,138.46,27.66479]
[1641609686707,26.29737801,138.52,138.46,27.66479]
[1641609689107,26.29737801,138.52,138.43,47.011]
[1641609689310,45.4544,138.51,138.43,47.011]
[1641609690209,27.66479,138.5,138.43,47.011]
[1641609691610,42.94216801,138.5,138.43,47.011]
[1641609692209,15.27737801,138.5,138.44,4.0]
[1641609692409,60.73177801,138.51,138.44,6.719]
[1641609693814,15.27737801,138.5,138.43,47.011]
[1641609694311,42.94216801,138.5,138.43,47.011]
[1641609695714,48.77116801,138.5,138.43,47.011]
[1641609696113,15.27737801,138.49,138.43,47.011]
[1641609696514,19.27737801,138.49,138.4,27.66479]
[1641609696714,47.2782,138.48,138.4,46.1362]
[1641609698015,15.27737801,138.47,138.4,46.1362]
[1641609698216,23.02437801,138.47,138.4,46.1362]
[1641609698415,27.66479,138.46,138.4,46.1362]
[1641609701120,32.53679,138.46,138.4,46.1362]
[1641609702422,4.872,138.46,138.4,46.1362]
[1641609702922,32.53679,138.46,138.4,46.1362]
[1641609703525,3.43120201,138.45,138.4,46.1362]
[1641609705726,70.94299,138.48,138.41,1.68108863]
[1641609706628,3.43035937,138.47,138.41,1.68108863]
[1641609709031,3.43035937,138.47,138.41,29.34587863]
[1641609709431,3.43035937,138.47,138.41,33.34587863]
[1641609709631,3.43035937,138.47,138.41,29.34587863]
[1641609709831,15.27737801,138.5,138.41,29.34587863]
[1641609710033,15.27737801,138.5,138.41,34.80987863]
[1641609710631,44.0588,138.49,138.41,34.80987863]
[1641609710833,44.0588,138.49,138.42,24.84796455]
[1641609711633,70.60695801,138.51,138.42,1.68108863]
[1641609711833,47.0141,138.5,138.42,1.68108863]
[1641609712034,42.94216801,138.51,138.44,4.0]
[1641609712234,42.94216801,138.51,138.44,5.647]
[1641609712637,27.66479,138.51,138.44,5.647]
[1641609713033,27.66479,138.51,138.44,33.31179]
[1641609713436,3.42869631,138.5,138.45,1.68108863]
[1641609715542,3.42869631,138.5,138.44,27.66479]
[1641609716546,3.42869631,138.5,138.45,1.68071495]
[1641609717744,3.42869631,138.5,138.43,45.948]
[1641609717943,50.41199631,138.5,138.43,45.948]
[1641609718747,18.70607432,138.49,138.43,37.74585531]
[1641609718948,25.62107432,138.49,138.43,37.74585531]
[1641609719145,27.66479,138.47,138.43,37.74585531]
[1641609720746,15.27737801,138.49,138.43,37.74585531]
[1641609720946,15.27737801,138.49,138.43,44.18785531]
[1641609721346,27.66479,138.47,138.43,44.18785531]
[1641609721849,18.70690437,138.49,138.43,44.18785531]
[1641609722048,15.27737801,138.49,138.43,44.18785531]
[1641609722248,15.27737801,138.49,138.43,37.74585531]
[1641609723451,27.66479,138.47,138.43,37.74585531]
[1641609723651,27.66479,138.47,138.4,27.66479]
[1641609723851,27.66479,138.47,138.4,73.41559]
[1641609724051,5.11073188,138.46,138.42,5.11073188]
[1641609724953,5.11073188,138.46,138.41,6.79208334]
[1641609725553,5.11073188,138.46,138.41,10.79208334]
[1641609725756,5.11073188,138.47,138.43,5.11073188]
[1641609725955,5.11073188,138.47,138.43,9.80373188]
[1641609726155,3.188e-05,138.47,138.45,4.0]
[1641609726355,15.27737801,138.5,138.46,4.0]
[1641609726554,9.06557801,138.5,138.46,11.177]
[1641609726755,40.4889177,138.54,138.47,11.21292556]
[1641609726955,15.32969173,138.52,138.5,4.0]
[1641609727156,53.03772215,138.55,138.5,9.052]
[1641609727456,53.03772215,138.55,138.51,27.66479]
[1641609727956,40.4889177,138.55,138.51,27.66479]
[1641609728359,27.66479,138.59,138.51,27.66479]
[1641609730358,31.66479,138.59,138.51,27.66479]
[1641609730960,31.66479,138.59,138.49,27.66479]
[1641609731163,39.10279,138.59,138.49,27.66479]
[1641609731959,4.0,138.54,138.45,77.90849]
[1641609732159,5.917,138.54,138.45,27.66479]
[1641609732759,45.3362,138.53,138.46,47.1733]
[1641609733461,73.00099,138.53,138.46,47.1733]
[1641609734062,45.3362,138.53,138.46,47.1733]
[1641609734259,40.4889177,138.57,138.46,51.1733]
[1641609734460,45.1757,138.56,138.46,60.88574586]
[1641609734659,45.1757,138.56,138.46,64.88574586]
[1641609735060,45.1757,138.56,138.47,4.0]
[1641609735459,45.1757,138.56,138.49,27.66479]
[1641609736563,49.1757,138.56,138.49,27.66479]
[1641609737062,45.1757,138.56,138.49,27.66479]
[1641609737261,49.1757,138.56,138.49,27.66479]
[1641609737462,27.66479,138.54,138.49,27.66479]
[1641609737662,33.63879,138.54,138.49,27.66479]
[1641609738462,5.974,138.54,138.49,27.66479]
[1641609738663,12.50728015,138.55,138.49,27.66479]
[1641609739264,45.1757,138.56,138.49,27.66479]
[1641609739463,72.84049,138.56,138.49,27.66479]
[1641609743970,45.1757,138.56,138.47,4.0]
[1641609744168,45.1757,138.56,138.46,51.1733]
[1641609744468,50.7507,138.56,138.42,50.6589]
[1641609744669,27.66479,138.54,138.47,27.66479]
[1641609744868,4.0,138.53,138.47,27.66479]
[1641609745068,6.633,138.53,138.47,27.66479]
[1641609745472,6.633,138.53,138.42,46.6589]
[1641609745473,4.0,138.52,138.42,46.6589]
[1641609745671,45.6341,138.51,138.42,46.6589]
[1641609746068,49.6341,138.51,138.4,46.5356]
[1641609746477,27.66479,138.47,138.4,74.20039]
[1641609746774,34.13979,138.47,138.4,74.20039]
[1641609748777,4.0,138.5,138.4,46.5356]
[1641609749279,27.66479,138.47,138.4,74.20039]
[1641609749879,33.00079,138.47,138.4,74.20039]
[1641609750080,33.00079,138.47,138.4,46.5356]
[1641609750883,37.00079,138.47,138.4,46.5356]
[1641609751284,27.66479,138.44,138.4,46.5356]
[1641609751483,34.81679,138.44,138.36,7.218653]
[1641609752585,27.66479,138.44,138.36,7.218653]
[1641609756488,48.3294,138.46,138.36,7.218653]
[1641609757389,27.66479,138.44,138.36,7.218653]
[1641609758491,27.66479,138.44,138.35,90.60478143]
[1641609758891,27.66479,138.44,138.35,75.33829]
[1641609759393,27.66479,138.41,138.35,75.33829]
[1641609760091,31.66479,138.41,138.33,42.93128143]
[1641609760292,31.66479,138.41,138.33,15.26649143]
[1641609760793,31.66479,138.41,138.31,64.27119143]
[1641609761394,27.66479,138.38,138.31,64.27119143]
[1641609761692,35.21179,138.38,138.31,49.0047]
[1641609763497,62.87658,138.38,138.3,27.66479]
[1641609763697,66.87658,138.38,138.3,27.66479]
[1641609763896,62.87658,138.38,138.3,27.66479]
[1641609764698,55.32958,138.38,138.3,27.66479]
[1641609767700,61.46258,138.38,138.3,27.66479]
[1641609768800,6.133,138.38,138.29,59.55426329]
[1641609769001,47.1047,138.4,138.29,59.55426329]
[1641609769402,47.1047,138.4,138.31,1.673635]
[1641609769601,47.1047,138.4,138.31,29.338425]
[1641609769602,74.76949,138.4,138.31,29.338425]
[1641609769802,78.76949,138.4,138.31,29.338425]
[1641609770002,74.76949,138.4,138.31,29.338425]
[1641609770202,74.76949,138.4,138.32,1.673635]
[1641609770402,78.76949,138.4,138.32,1.673635]
[1641609770603,4.0,138.38,138.32,1.673635]
[1641609770802,8.767,138.38,138.32,1.673635]
[1641609771603,8.767,138.38,138.31,27.66479]
[1641609771803,27.66479,138.36,138.31,27.66479]
[1641609772504,27.66479,138.36,138.29,75.99649]
[1641609772705,31.66479,138.36,138.29,75.99649]
[1641609773807,55.32958,138.36,138.29,75.99649]
[1641609774205,27.66479,138.36,138.29,75.99649]
[1641609775206,27.66479,138.36,138.29,79.99649]
[1641609775504,27.66479,138.36,138.3,1.67668934]
[1641609775706,27.66479,138.36,138.3,8.59068934]
[1641609776508,27.66479,138.36,138.31,1.67668934]
[1641609777708,4.0,138.38,138.31,1.67668934]
[1641609778011,85.70949,138.4,138.32,27.66479]
[1641609778308,15.26649143,138.43,138.33,7.22047727]
[1641609778509,15.26649143,138.44,138.33,60.82197727]
[1641609778911,15.26649143,138.44,138.33,53.6015]
[1641609779111,19.26649143,138.44,138.33,53.6015]
[1641609779310,4.0,138.43,138.33,53.6015]
[1641609779511,11.446,138.43,138.34,1.67668934]
[1641609779911,11.446,138.43,138.37,27.66479]
[1641609780415,3.41990544,138.42,138.37,27.66479]
[1641609780612,3.41990544,138.42,138.37,19.45838214]
[1641609781712,3.41990544,138.43,138.37,19.45838214]
[1641609782113,7.41990544,138.43,138.37,19.45838214]
[1641609782516,3.41990544,138.43,138.37,19.45838214]
[1641609782814,7.41990544,138.43,138.37,19.45838214]
[1641609783516,3.41990544,138.43,138.37,19.45838214]
[1641609783715,7.41990544,138.43,138.37,19.45838214]
[1641609784415,7.41990544,138.43,138.33,46.0905]
[1641609784715,3.41990544,138.42,138.33,46.0905]
[1641609785520,3.41990544,138.42,138.34,1.68102869]
[1641609786019,3.41990544,138.42,138.36,27.66479]
[1641609786419,5.10717858,138.4,138.36,33.59979]
[1641609787920,5.10717858,138.41,138.36,33.59979]
[1641609788121,5.10717858,138.41,138.36,27.66479]
[1641609788520,5.10717858,138.4,138.36,27.66479]
[1641609789521,5.10717858,138.41,138.36,32.77196858]
[1641609790523,5.10717858,138.41,138.37,6.79119856]
[1641609793526,5.10717858,138.41,138.36,32.77196858]
[1641609794025,5.10717858,138.41,138.36,5.10717858]
[1641609794526,9.10717858,138.41,138.36,5.10717858]
[1641609794728,5.10717858,138.41,138.36,5.10717858]
[1641609795126,9.10717858,138.41,138.36,5.10717858]
[1641609795328,9.10717858,138.41,138.37,6.79074209]
[1641609796031,5.10717858,138.4,138.35,5.10717858]
[1641609796229,27.66479,138.38,138.35,5.10717858]
[1641609796530,34.46979,138.38,138.35,5.10717858]
[1641609797931,6.805,138.38,138.35,5.10717858]
[1641609798633,34.46979,138.38,138.35,5.10717858]
[1641609799832,39.57696858,138.38,138.34,1.68356351]
[1641609800032,39.57696858,138.38,138.33,5.10717858]
[1641609800931,34.46979,138.38,138.34,5.10717858]
[1641609801936,39.57696858,138.38,138.34,5.10717858]
[1641609802634,39.57696858,138.38,138.33,5.10717858]
[1641609803435,39.57696858,138.38,138.34,5.10717858]
[1641609804236,39.57696858,138.38,138.35,5.10717858]
[1641609807540,5.10717858,138.37,138.34,5.10717858]
[1641609816149,4.0,138.36,138.34,5.10717858]
[1641609816351,9.193,138.36,138.34,5.10717858]
[1641609816552,5.193,138.36,138.34,5.10717858]
[1641609818458,4.0,138.35,138.34,5.10717858]
[1641609818658,4.0,138.35,138.31,1.68356351]
[1641609818859,4.0,138.32,138.29,15.26649143]
[1641609819059,27.66479,138.3,138.29,15.26649143]
[1641609819963,27.66479,138.3,138.25,1.68389368]
[1641609824066,27.66479,138.3,138.25,24.84008805]
[1641609824967,27.66479,138.31,138.25,1.68389368]
[1641609825368,27.66479,138.31,138.25,29.34868368]
[1641609826268,27.66479,138.31,138.26,1.68389368]
[1641609826469,70.66109,138.34,138.26,1.68389368]
[1641609827169,70.66109,138.34,138.26,16.95038511]
[1641609827369,74.66109,138.34,138.26,16.95038511]
[1641609828371,4.0,138.31,138.26,16.95038511]
[1641609828570,5.061,138.31,138.26,16.95038511]
[1641609829271,27.66479,138.3,138.26,16.95038511]
[1641609829474,27.66479,138.3,138.25,1.68389368]
[1641609829872,4.0,138.29,138.25,1.68389368]
[1641609831374,27.66479,138.26,138.21,1.68389368]
[1641609831574,34.19979,138.26,138.21,1.68389368]
[1641609833175,6.535,138.26,138.21,1.68389368]
[1641609833375,9.061,138.31,138.21,1.68389368]
[1641609833575,40.9225,138.3,138.21,1.68389368]
[1641609833777,68.58729,138.3,138.22,27.66479]
[1641609834175,27.66479,138.3,138.22,27.66479]
[1641609834376,27.66479,138.3,138.23,1.68389368]
[1641609840983,19.45258656,138.3,138.23,1.68389368]
[1641609845390,19.45258656,138.3,138.21,23.13704309]
[1641609845391,19.45258656,138.3,138.21,24.82093677]
[1641609845688,49.1365,138.3,138.21,24.82093677]
[1641609846590,27.66479,138.28,138.21,24.82093677]
[1641609846793,27.66479,138.28,138.22,15.26649143]
[1641609846991,27.66479,138.28,138.22,21.13949143]
[1641609847190,15.26649143,138.34,138.22,25.13949143]
[1641609847593,15.26649143,138.34,138.23,8.90932721]
[1641609847996,15.26649143,138.34,138.24,40.5332]
[1641609848894,3.42873119,138.35,138.28,27.66479]
[1641609849593,7.42873119,138.35,138.26,27.66479]
[1641609850193,7.42873119,138.35,138.29,1.68389368]
[1641609850695,27.66479,138.34,138.29,1.68389368]
[1641609850994,27.66479,138.34,138.26,42.93128143]
[1641609850995,31.09352119,138.34,138.27,1.68389368]
[1641609851397,3.42873119,138.34,138.27,5.68389368]
[1641609851595,3.42873119,138.34,138.27,1.68389368]
[1641609851997,15.26649143,138.36,138.27,1.68389368]
[1641609852198,55.00889143,138.39,138.28,15.26649143]
[1641609852397,55.00889143,138.39,138.29,42.3797]
[1641609852897,82.67368143,138.39,138.31,27.66479]
[1641609853098,82.67368143,138.39,138.31,35.32479]
[1641609853499,3.42940394,138.38,138.31,35.32479]
[1641609854500,3.42940394,138.38,138.32,1.68389368]
[1641609855500,67.40719,138.39,138.32,1.68389368]
[1641609856300,67.40719,138.39,138.31,27.66479]
[1641609858505,4.0,138.35,138.29,42.3797]
[1641609858803,32.56279,138.35,138.28,15.26649143]
[1641609859706,3.42645637,138.34,138.27,41.4445]
[1641609860506,4.0,138.33,138.27,41.4445]
[1641609860708,27.66479,138.31,138.27,41.4445]
[1641609860907,35.11079,138.31,138.26,27.66479]
[1641609862509,7.446,138.31,138.25,7.22465051]
[1641609863009,7.446,138.31,138.26,1.68000619]
[1641609863309,35.11079,138.31,138.26,1.68000619]
[1641609864409,39.11079,138.31,138.26,1.68000619]
[1641609864811,35.11079,138.31,138.26,1.68000619]
[1641609865209,39.11079,138.31,138.24,41.5242]
[1641609865911,35.11079,138.31,138.24,41.5242]
[1641609866917,35.11079,138.31,138.25,1.67992988]
[1641609870721,45.83079,138.31,138.25,1.67992988]
[1641609877730,18.166,138.31,138.25,1.67992988]
[1641609878130,55.7418836,138.34,138.25,6.80892988]
[1641609878328,27.66479,138.33,138.26,27.66479]
[1641609878533,5.349,138.34,138.26,27.66479]
[1641609879334,10.45733611,138.34,138.28,5.10833611]
[1641609880333,5.349,138.34,138.29,5.10833611]
[1641609881934,10.45733611,138.34,138.28,5.10833611]
[1641609884441,10.45733611,138.34,138.29,5.10833611]
[1641609885244,5.10833611,138.33,138.28,5.10833611]
[1641609885943,10.45733611,138.34,138.28,5.10833611]
[1641609887548,5.10833611,138.33,138.28,5.10833611]
[1641609888350,5.10833611,138.33,138.29,5.10833611]
[1641609890251,27.66479,138.35,138.29,5.10833611]
[1641609890252,5.10833611,138.34,138.29,5.10833611]
[1641609897058,5.10833611,138.33,138.29,5.10833611]
[1641609903069,5.10833611,138.33,138.28,1.67992988]
[1641609903070,27.66479,138.34,138.28,1.67992988]
[1641609903370,27.66479,138.34,138.3,5.11764912]
[1641609903569,86.73568143,138.37,138.3,5.11764912]
[1641609904673,5.11865919,138.34,138.31,5.11865919]
[1641609905574,3.43499763,138.36,138.29,1.67992988]
[1641609905775,3.43499763,138.36,138.29,29.34471988]
[1641609906777,5.12158051,138.34,138.31,5.12158051]
[1641609907477,3.43499763,138.36,138.3,1.67992988]
[1641609907679,5.12124024,138.35,138.32,5.12124024]
[1641609909182,27.66479,138.37,138.33,5.12551915]
[1641609910279,5.12549404,138.35,138.3,16.94642131]
[1641609911180,27.66479,138.37,138.33,5.12402864]
[1641609912082,27.66479,138.37,138.3,16.94642131]
[1641609912283,5.1238019,138.35,138.3,16.94642131]
[1641609912683,5.1238019,138.35,138.3,24.85302081]
[1641609913987,15.26649143,138.38,138.33,5.12371818]
[1641609914789,15.26649143,138.38,138.3,28.85302081]
[1641609914990,5.12099241,138.36,138.34,5.12099241]
[1641609915890,5.12099241,138.36,138.34,32.78578241]
[1641609916692,42.93128143,138.39,138.34,27.66479]
[1641609916893,27.66479,138.39,138.34,34.28479]
[1641609917491,5.11804417,138.37,138.34,39.40283417]
[1641609917692,5.11804417,138.37,138.34,11.73804417]
[1641609918191,5.11804417,138.37,138.34,39.40283417]
[1641609918591,10.66,138.41,138.35,7.21943472]
[1641609918795,40.9413497,138.44,138.4,7.21630886]
[1641609918995,40.9413497,138.44,138.4,6.844]
[1641609919194,40.9413497,138.44,138.43,7.21500722]
[1641609919593,22.9184497,138.44,138.43,11.21500722]
[1641609919995,10.6384497,138.44,138.43,11.21500722]
[1641609920197,59.96497322,138.48,138.43,86.54458722]
[1641609920398,15.32246467,138.5,138.47,4.0]
[1641609920696,10.6384497,138.53,138.49,7.21058514]
[1641609920896,10.6384497,138.53,138.52,7.20954544]
[1641609921098,10.6384497,138.53,138.52,14.43554544]
[1641609921296,59.96497322,138.57,138.52,14.43554544]
[1641609921499,59.96497322,138.57,138.53,20.0]
[1641609921697,44.92497322,138.57,138.53,20.0]
[1641609921897,5.368,138.6,138.53,20.0]
[1641609921898,6.50918872,138.59,138.53,20.0]
[1641609922099,1.50918872,138.59,138.58,7.20668781]
[1641609922298,1.50918872,138.59,138.58,67.31426781]
[1641609922498,1.51718872,138.6,138.58,67.31426781]
[1641609922699,0.01718872,138.6,138.59,7.20409192]
[1641609922898,0.01718872,138.6,138.59,27.20409192]
[1641609923200,43.22216194,138.66,138.59,27.20409192]
[1641609923398,41.02216194,138.66,138.59,27.20409192]
[1641609923599,101.94671458,138.7,138.63,20.0]
[1641609923798,101.94671458,138.7,138.65,7.20227592]
[1641609923998,6.936,138.74,138.65,7.20227592]
[1641609924398,6.936,138.74,138.68,27.66479]
[1641609924598,6.936,138.74,138.68,33.03479]
[1641609925398,6.936,138.74,138.68,53.03479]
[1641609925600,6.936,138.74,138.72,7.1999424]
[1641609926201,6.936,138.74,138.69,7.20175723]
[1641609926401,6.936,138.74,138.72,27.66479]
[1641609927003,6.936,138.74,138.68,27.66479]
[1641609927004,4.0,138.73,138.7,7.20123861]
[1641609927204,4.0,138.71,138.68,27.66479]
[1641609927406,4.0,138.73,138.64,7.20435143]
[1641609927604,7.14,138.71,138.64,7.20435143]
[1641609928505,6.936,138.74,138.67,27.66479]
[1641609928706,6.936,138.74,138.67,34.12379]
[1641609928908,4.0,138.75,138.67,34.12379]
[1641609929107,4.0,138.74,138.69,7.20175723]
[1641609929308,4.0,138.77,138.69,7.20175723]
[1641609929508,27.66479,138.8,138.69,7.20175723]
[1641609929910,4.0,138.76,138.67,27.66479]
[1641609930111,4.0,138.7,138.67,27.66479]
[1641609930308,4.0,138.69,138.65,27.66479]
[1641609930510,4.0,138.66,138.62,27.66479]
[1641609930711,4.867,138.66,138.58,7.20720721]
[1641609931110,4.0,138.68,138.56,20.0]
[1641609931311,4.0,138.68,138.63,7.20461095]
[1641609931513,27.66479,138.74,138.63,7.20461095]
[1641609931712,4.0,138.65,138.63,7.20461095]
[1641609932414,4.0,138.67,138.63,7.20461095]
[1641609932611,4.0,138.68,138.63,7.20461095]
[1641609933212,4.0,138.67,138.63,7.20461095]
[1641609935214,4.0,138.64,138.61,27.66479]
[1641609935414,4.0,138.62,138.59,35.12979]
[1641609935615,9.584,138.62,138.59,35.12979]
[1641609935814,5.584,138.62,138.59,35.12979]
[1641609936014,4.0,138.66,138.6,7.20616848]
[1641609936214,4.0,138.65,138.6,7.20616848]
[1641609936416,31.66479,138.7,138.59,35.12979]
[1641609936417,4.0,138.67,138.62,27.66479]
[1641609936616,4.0,138.63,138.59,35.12979]
[1641609937117,4.0,138.6,138.59,7.465]
[1641609937316,5.49,138.6,138.59,7.465]
[1641609938617,4.0,138.6,138.59,7.465]
[1641609939018,9.206,138.61,138.59,7.465]
[1641609939317,4.0,138.6,138.59,7.465]
[1641609940119,5.206,138.61,138.59,7.465]
[1641609940318,4.0,138.6,138.59,7.465]
[1641609940718,9.206,138.61,138.59,7.465]
[1641609941120,4.0,138.61,138.59,7.465]
[1641609941319,10.998,138.69,138.59,7.465]
[1641609941522,4.0,138.66,138.61,7.20590885]
[1641609942421,4.0,138.63,138.61,7.20590885]
[1641609942624,4.0,138.63,138.6,27.66479]
[1641609942822,4.0,138.61,138.59,7.465]
[1641609943022,4.0,138.67,138.59,7.465]
[1641609943223,4.0,138.61,138.59,7.465]
[1641609943422,4.0,138.65,138.59,7.465]
[1641609943623,4.0,138.6,138.59,7.465]
[1641609943824,4.0,138.66,138.59,7.465]
[1641609944024,4.0,138.67,138.59,7.465]
[1641609944323,4.0,138.62,138.59,7.465]
[1641609944723,4.0,138.6,138.59,7.465]
[1641609945523,9.625,138.6,138.59,7.465]
[1641609945724,13.625,138.6,138.59,7.465]
[1641609945925,13.625,138.6,138.53,7.032]
[1641609946125,4.0,138.54,138.53,7.032]
[1641609946326,10.882,138.56,138.53,7.032]
[1641609946526,4.0,138.56,138.53,34.69679]
[1641609946926,4.0,138.63,138.53,27.66479]
[1641609947127,4.0,138.58,138.53,34.20579]
[1641609947427,55.32958,138.65,138.53,41.41559534]
[1641609947627,4.0,138.58,138.53,41.41559534]
[1641609948327,4.0,138.64,138.53,41.41559534]
[1641609948527,4.0,138.63,138.59,27.66479]
[1641609948729,4.0,138.65,138.6,7.20642813]
[1641609948927,4.0,138.65,138.59,32.56179]
[1641609949327,4.0,138.61,138.59,32.56179]
[1641609949527,4.0,138.6,138.59,32.56179]
[1641609949728,4.0,138.6,138.59,27.66479]
[1641609949928,12.691,138.6,138.53,27.66479]
[1641609950129,8.691,138.6,138.53,27.66479]
[1641609950327,4.0,138.54,138.51,47.18657179]
[1641609950530,7.717,138.54,138.52,7.21058514]
[1641609950929,4.0,138.56,138.52,7.21058514]
[1641609951732,4.0,138.54,138.52,7.21058514]
[1641609952030,4.0,138.59,138.52,7.21058514]
[1641609952231,4.0,138.54,138.52,7.21058514]
[1641609952429,27.66479,138.6,138.52,7.21058514]
[1641609952430,7.556,138.56,138.52,7.21058514]
[1641609952631,11.556,138.56,138.54,7.20954544]
[1641609953431,4.0,138.55,138.54,7.20954544]
[1641609953832,27.66479,138.6,138.54,7.20954544]
[1641609954332,4.0,138.56,138.54,7.20954544]
[1641609954832,31.66479,138.6,138.54,7.20954544]
[1641609955032,27.66479,138.6,138.54,7.20954544]
[1641609955432,4.0,138.56,138.54,7.20954544]
[1641609955833,8.0,138.55,138.53,7.13]
[1641609956032,4.0,138.54,138.53,7.13]
[1641609958439,27.66479,138.6,138.53,7.13]
[1641609958640,4.0,138.54,138.53,7.13]
[1641609959240,27.66479,138.6,138.53,7.13]
[1641609959739,4.0,138.57,138.53,7.13]
[1641609960640,27.66479,138.6,138.53,7.13]
[1641609961042,4.0,138.57,138.54,1.6906882]
[1641609961642,4.0,138.59,138.54,8.90023364]
[1641609961842,27.66479,138.62,138.54,8.90023364]
[1641609962041,4.0,138.6,138.54,8.90023364]
[1641609962241,4.0,138.6,138.58,7.20746694]
[1641609963143,31.66479,138.64,138.58,7.20746694]
[1641609965046,4.0,138.59,138.58,7.20746694]